[Event "Targo Mures Open 2019"]
[Site "Targo Mures"]
[Date "2019.10.20"]
[Round "6.4"]
[White "Petre, Nad-Titus"]
[Black "Daianu, Cristian-Clement"]
[Result "1-0"]
[ECO "A80"]
[WhiteElo "2306"]
[BlackElo "2206"]
[Annotator "ChessBase"]
[PlyCount "93"]
[EventDate "2019.03.02"]
[EventType "swiss"]
[EventCountry "ROU"]
[SourceTitle "playchess.com"]
[Source "ChessBase"]
[SourceQuality "1"]
[TimeControl "5400+30"]

1. d4 f5 {[%emt 0:08:50]} 2. Nc3 {[%emt 0:00:38]} Nf6 {[%emt 0:00:23]} 3. Bg5 {[%emt 0:00:09]} d5 {[%emt 0:07:50]} 4. Bxf6 {[%emt 0:00:14]} exf6 {[%emt 0:00:02]} 5. e3 {[%emt 0:00:22]} c6 {[%emt 0:01:05]} 6. Bd3 {[%emt 0:00:50]} Bd6 {[%emt 0:00:08]} 7. Qf3 {[%emt 0:02:20]} g6 {[%emt 0:18:22]} 8. Nge2 {[%emt 0:03:57]} Nd7 {[%emt 0:02:55]} 9. h3 {[%emt 0:02:11]} Nf8 {[%emt 0:03:07]} 10. g4 {[%emt 0:07:46]} fxg4 {[%emt 0:04:25]} 11. hxg4 {[%emt 0:00:11]} Qe7 {[%emt 0:00:17]} 12. O-O-O {[%emt 0:04:38]} Be6 {[%emt 0:08:00]} 13. e4 {[%emt 0:01:30]} dxe4 {[%emt 0:00:06]} 14. Nxe4 {[%emt 0:02:19]} O-O-O {[%emt 0:00:05]} 15. Nxd6+ {[%emt 0:18:46]} Rxd6 {[%emt 0:07:29]} 16. Qe3 {[%emt 0:01:28]} Qd8 {[%emt 0:10:23]} 17. f3 {[%emt 0:04:01]} Bf7 {[%emt 0:01:24]} 18. Nc3 {[%emt 0:16:21]} Rd7 {[%emt 0:19:26]} 19. Be4 {[%emt 0:07:40]} Kb8 {[%emt 0:00:17]} 20. f4 {[%emt 0:07:19]} g5 {[%emt 0:04:45]} 21. fxg5 {[%emt 0:03:05]} fxg5 {[%emt 0:00:02]} 22. Bxc6 {[%emt 0:00:25]} Rc7 {[%emt 0:01:02]} 23. Be4 {[%emt 0:02:12]} a6 {[%emt 0:00:10]} 24. d5 {[%emt 0:01:01]} Qd6 {[%emt 0:00:55]} 25. Qxg5 {[%emt 0:01:44]} Bg6 {[%emt 0:00:19]} 26. Rhf1 {[%emt 0:01:32]} Rxc3 {[%emt 0:00:40]} 27. Bxg6 {[%emt 0:01:55]} Nxg6 {[%emt 0:00:18]} 28. bxc3 {[%emt 0:00:05]} Qa3+ {[%emt 0:00:08]} 29. Kb1 {[%emt 0:03:28]} Rc8 {[%emt 0:00:25]} 30. Qc1 {[%emt 0:01:06]} Qa5 {[%emt 0:00:57]} 31. Rf5 {[%emt 0:01:58]} Rc5 {[%emt 0:00:22]} 32. Rd3 {[%emt 0:02:33]} Ne7 {[%emt 0:00:45]} 33. Qf4+ {[%emt 0:00:36]} Ka7 {[%emt 0:00:07]} 34. Rf8 {[%emt 0:00:48]} Rb5+ {[%emt 0:00:40]} 35. Kc1 {[%emt 0:00:21]} Qa3+ {[%emt 0:00:38]} 36. Kd2 {[%emt 0:00:22]} Nxd5 {[%emt 0:00:39]} 37. Qb8+ {[%emt 0:00:32]} Kb6 {[%emt 0:00:02]} 38. Qd8+ {[%emt 0:00:14]} Ka7 {[%emt 0:00:08]} 39. Rf5 {[%emt 0:01:07]} Nb6 {[%emt 0:01:16]} 40. Rxb5 {[%emt 0:01:02]} Nc4+ {[%emt 0:00:20]} 41. Ke2 {[%emt 0:00:38]} axb5 {[%emt 0:00:05]} 42. Qd4+ {[%emt 0:00:09]} Ka6 {[%emt 0:00:28]} 43. Qf6+ {[%emt 0:00:13]} Ka7 {[%emt 0:01:12]} 44. Rd8 {[%emt 0:00:36]} Nb6 {[%emt 0:00:30]} 45. Qd4 {[%emt 0:00:30]} Qxa2 {[%emt 0:00:10]} 46. Rd6 {[%emt 0:00:28]} Qxc2+ {[%emt 0:00:50]} 47. Kf3 {[%emt 0:00:02]} 1-0

[Event "Targo Mures Open 2019"]
[Site "Targo Mures"]
[Date "2019.10.20"]
[Round "6.5"]
[White "Titu, Maiorescu-Dorin"]
[Black "Manea, Alexandru"]
[Result "0-1"]
[ECO "A08"]
[WhiteElo "2147"]
[BlackElo "2305"]
[Annotator "ChessBase"]
[PlyCount "94"]
[EventDate "2019.03.02"]
[EventType "swiss"]
[EventCountry "ROU"]
[SourceTitle "playchess.com"]
[Source "ChessBase"]
[SourceQuality "1"]
[TimeControl "5400+30"]

1. Nf3 {[%emt 0:00:00]} Nf6 {[%emt 0:14:33]} 2. g3 {[%emt 0:00:00]} d5 {[%emt 0:00:59]} 3. Bg2 {[%emt 0:00:00]} c5 {[%emt 0:00:05]} 4. d3 {[%emt 0:00:08]} Nc6 {[%emt 0:00:05]} 5. O-O {[%emt 0:00:19]} e6 {[%emt 0:00:03]} 6. Nbd2 {[%emt 0:00:09]} Be7 {[%emt 0:00:05]} 7. e4 {[%emt 0:00:10]} O-O {[%emt 0:00:05]} 8. Re1 {[%emt 0:00:19]} b5 {[%emt 0:00:15]} 9. e5 {[%emt 0:13:09]} Nd7 {[%emt 0:00:55]} 10. Nf1 {[%emt 0:00:08]} Qc7 {[%emt 0:00:08]} 11. Bf4 {[%emt 0:00:06]} Bb7 {[%emt 0:00:11]} 12. h4 {[%emt 0:00:15]} Rfc8 {[%emt 0:00:04]} 13. h5 {[%emt 0:01:49]} h6 {[%emt 0:02:18]} 14. c3 {[%emt 0:10:57]} a5 {[%emt 0:01:42]} 15. Rc1 {[%emt 0:08:34]} a4 {[%emt 0:00:57]} 16. Ne3 {[%emt 0:16:48]} Qd8 {[%emt 0:00:57]} 17. Ng4 {[%emt 0:13:38]} Bf8 {[%emt 0:02:10]} 18. Qd2 {[%emt 0:07:19]} c4 {[%emt 0:15:52]} 19. d4 {[%emt 0:02:54]} b4 {[%emt 0:01:50]} 20. Rb1 {[%emt 0:00:34]} a3 {[%emt 0:09:07]} 21. bxa3 {[%emt 0:05:16]} bxc3 {[%emt 0:01:17]} 22. Qxc3 {[%emt 0:06:41]} Rxa3 {[%emt 0:01:21]} 23. Qc1 {[%emt 0:00:01]} Ra7 {[%emt 0:00:35]} 24. Bd2 {[%emt 0:00:24]} Rca8 {[%emt 0:04:54]} 25. Ne3 {[%emt 0:08:12]} Bc8 {[%emt 0:02:20]} 26. Nxc4 {[%emt 0:00:11]} dxc4 {[%emt 0:00:22]} 27. Qxc4 {[%emt 0:00:01]} Ne7 {[%emt 0:00:34]} 28. Bb4 {[%emt 0:03:01]} Nb6 {[%emt 0:06:57]} 29. Qb3 {[%emt 0:01:18]} Nbd5 {[%emt 0:00:15]} 30. a3 {[%emt 0:00:13]} Nc6 {[%emt 0:00:16]} 31. Bxf8 {[%emt 0:00:17]} Qxf8 {[%emt 0:00:07]} 32. Qc2 {[%emt 0:00:27]} Bd7 {[%emt 0:00:27]} 33. Rec1 {[%emt 0:01:03]} Qxa3 {[%emt 0:03:34]} 34. Qd2 {[%emt 0:00:11]} Qa5 {[%emt 0:02:07]} 35. Qd3 {[%emt 0:00:14]} Qa3 {[%emt 0:01:13]} 36. Qd2 {[%emt 0:00:07]} Qe7 {[%emt 0:00:20]} 37. Ne1 {[%emt 0:00:25]} Ra2 {[%emt 0:00:32]} 38. Qd1 {[%emt 0:01:25]} Ncb4 {[%emt 0:04:05]} 39. Be4 {[%emt 0:00:34]} Be8 {[%emt 0:03:18]} 40. Qf3 {[%emt 0:00:34]} R2a3 {[%emt 0:01:52]} 41. Rb3 {[%emt 0:00:02]} Rxb3 {[%emt 0:01:00]} 42. Qxb3 {[%emt 0:00:02]} Qg5 {[%emt 0:02:26]} 43. Qd1 {[%emt 0:00:01]} Rd8 {[%emt 0:01:01]} 44. Kh2 {[%emt 0:02:17]} Ba4 {[%emt 0:03:38]} 45. f4 {[%emt 0:00:35]} Bxd1 {[%emt 0:05:33]} 46. fxg5 {[%emt 0:00:06]} Bxh5 {[%emt 0:00:04]} 47. gxh6 {[%emt 0:00:20]} gxh6 {[%emt 0:00:06]} 0-1

[Event "Targo Mures Open 2019"]
[Site "Targo Mures"]
[Date "2019.10.20"]
[Round "6.6"]
[White "Vasiesiu, Dan"]
[Black "Panc, Samuel"]
[Result "1-0"]
[ECO "B29"]
[WhiteElo "2392"]
[BlackElo "1873"]
[Annotator "ChessBase"]
[PlyCount "119"]
[EventDate "2019.03.02"]
[EventType "swiss"]
[EventCountry "ROU"]
[SourceTitle "playchess.com"]
[Source "ChessBase"]
[SourceQuality "1"]
[TimeControl "5400+30"]

1. e4 {[%emt 0:00:00]} c5 {[%emt 0:00:00]} 2. Nf3 {[%emt 0:00:00]} Nf6 {[%emt 0:00:00]} 3. e5 {[%emt 0:00:09]} Nd5 {[%emt 0:00:00]} 4. Nc3 {[%emt 0:00:07]} Nxc3 {[%emt 0:00:00]} 5. dxc3 {[%emt 0:00:14]} Nc6 {[%emt 0:00:00]} 6. Bf4 {[%emt 0:03:57]} Qb6 {[%emt 0:00:01]} 7. b3 {[%emt 0:02:29]} Qc7 {[%emt 0:00:08]} 8. Qd2 {[%emt 0:00:57]} e6 {[%emt 0:00:04]} 9. O-O-O {[%emt 0:02:39]} a6 {[%emt 0:00:27]} 10. h4 {[%emt 0:04:10]} b5 {[%emt 0:00:26]} 11. h5 {[%emt 0:00:35]} h6 {[%emt 0:00:18]} 12. Kb1 {[%emt 0:00:42]} c4 {[%emt 0:02:41]} 13. Rh4 {[%emt 0:08:02]} Ne7 {[%emt 0:03:46]} 14. Qe1 {[%emt 0:21:20]} Bb7 {[%emt 0:04:14]} 15. Bd2 {[%emt 0:07:08]} Nd5 {[%emt 0:12:57]} 16. bxc4 {[%emt 0:00:54]} bxc4 {[%emt 0:00:06]} 17. Bxc4 {[%emt 0:00:09]} Nb6 {[%emt 0:07:40]} 18. Bb3 {[%emt 0:04:30]} a5 {[%emt 0:01:00]} 19. a4 {[%emt 0:00:08]} Bd5 {[%emt 0:14:03]} 20. Nd4 {[%emt 0:06:19]} Bc4 {[%emt 0:00:51]} 21. Nb5 {[%emt 0:03:00]} Bxb5 {[%emt 0:00:43]} 22. axb5 {[%emt 0:00:06]} a4 {[%emt 0:03:57]} 23. Ba2 {[%emt 0:00:08]} Qc5 {[%emt 0:05:10]} 24. Qe2 {[%emt 0:04:29]} Ra5 {[%emt 0:02:26]} 25. c4 {[%emt 0:01:42]} Ra7 {[%emt 0:01:42]} 26. Rg4 {[%emt 0:07:21]} a3 {[%emt 0:03:29]} 27. Ka1 {[%emt 0:01:55]} Na4 {[%emt 0:12:26]} 28. Bb3 {[%emt 0:01:34]} d5 {[%emt 0:04:45]} 29. Qe3 {[%emt 0:03:22]} d4 {[%emt 0:05:56]} 30. Qxd4 {[%emt 0:01:08]} Qxd4+ {[%emt 0:00:04]} 31. Rxd4 {[%emt 0:00:13]} Bc5 {[%emt 0:00:11]} 32. Rf4 {[%emt 0:02:59]} Nb6 {[%emt 0:02:36]} 33. Be3 {[%emt 0:01:56]} Bxe3 {[%emt 0:01:06]} 34. fxe3 {[%emt 0:00:12]} Nd7 {[%emt 0:01:31]} 35. Rxd7 {[%emt 0:00:12]} Rxd7 {[%emt 0:00:16]} 36. c5 {[%emt 0:00:06]} Ke7 {[%emt 0:00:41]} 37. c6 {[%emt 0:00:39]} Rc7 {[%emt 0:00:11]} 38. Ra4 {[%emt 0:01:01]} Rb8 {[%emt 0:00:42]} 39. Ra5 {[%emt 0:01:38]} f6 {[%emt 0:00:17]} 40. Ka2 {[%emt 0:00:14]} fxe5 {[%emt 0:00:15]} 41. c4 {[%emt 0:00:16]} Kd6 {[%emt 0:00:50]} 42. Kxa3 {[%emt 0:01:04]} Kc5 {[%emt 0:00:50]} 43. Ra6 {[%emt 0:00:48]} e4 {[%emt 0:01:12]} 44. Ka4 {[%emt 0:00:54]} Rf7 {[%emt 0:01:26]} 45. Ka5 {[%emt 0:00:28]} Rc7 {[%emt 0:01:34]} 46. Ba4 {[%emt 0:00:24]} e5 {[%emt 0:01:58]} 47. b6 {[%emt 0:02:21]} Rxc6 {[%emt 0:00:25]} 48. Bxc6 {[%emt 0:00:08]} Kxc6 {[%emt 0:00:01]} 49. b7+ {[%emt 0:01:36]} Kc5 {[%emt 0:02:10]} 50. Rb6 {[%emt 0:01:31]} Kxc4 {[%emt 0:00:01]} 51. Ka6 {[%emt 0:00:23]} Kd3 {[%emt 0:00:04]} 52. Rb3+ {[%emt 0:00:31]} Ke2 {[%emt 0:00:45]} 53. Ka7 {[%emt 0:00:28]} Rf8 {[%emt 0:00:07]} 54. b8=Q {[%emt 0:00:31]} Rxb8 {[%emt 0:00:06]} 55. Kxb8 {[%emt 0:00:08]} Kf2 {[%emt 0:00:04]} 56. Kc7 {[%emt 0:00:14]} Kxg2 {[%emt 0:00:07]} 57. Kd6 {[%emt 0:00:06]} Kf3 {[%emt 0:00:08]} 58. Kxe5 {[%emt 0:00:07]} Kg4 {[%emt 0:00:07]} 59. Rb7 {[%emt 0:00:33]} Kxh5 {[%emt 0:00:07]} 60. Rxg7 {[%emt 0:00:05]} 1-0

[Event "Targo Mures Open 2019"]
[Site "Targo Mures"]
[Date "2019.10.20"]
[Round "6.7"]
[White "Velcherean, Vasile-Adrian"]
[Black "Banzea, Alexandru-Bogdan"]
[Result "0-1"]
[ECO "D37"]
[WhiteElo "1925"]
[BlackElo "2389"]
[Annotator "ChessBase"]
[PlyCount "80"]
[EventDate "2019.03.02"]
[EventType "swiss"]
[EventCountry "ROU"]
[SourceTitle "playchess.com"]
[Source "ChessBase"]
[SourceQuality "1"]
[TimeControl "5400+30"]

1. d4 {[%emt 0:06:33]} Nf6 {[%emt 0:00:00]} 2. Nf3 {[%emt 0:00:11]} d5 {[%emt 0:00:11]} 3. c4 {[%emt 0:03:41]} e6 {[%emt 0:00:05]} 4. Nc3 {[%emt 0:00:46]} a6 {[%emt 0:00:17]} 5. cxd5 {[%emt 0:00:16]} exd5 {[%emt 0:00:06]} 6. Bg5 {[%emt 0:00:22]} Be6 {[%emt 0:00:35]} 7. e3 {[%emt 0:00:36]} Nbd7 {[%emt 0:00:12]} 8. a4 {[%emt 0:00:31]} h6 {[%emt 0:01:46]} 9. Bh4 {[%emt 0:00:14]} g5 {[%emt 0:04:26]} 10. Bg3 {[%emt 0:00:12]} Nh5 {[%emt 0:00:06]} 11. Bd3 {[%emt 0:02:50]} Nxg3 {[%emt 0:00:31]} 12. hxg3 {[%emt 0:00:11]} Bg7 {[%emt 0:00:59]} 13. Qc2 {[%emt 0:00:47]} c6 {[%emt 0:04:38]} 14. O-O {[%emt 0:01:19]} h5 {[%emt 0:02:41]} 15. Bf5 {[%emt 0:01:18]} Qf6 {[%emt 0:03:30]} 16. Bxe6 {[%emt 0:08:36]} fxe6 {[%emt 0:00:05]} 17. Rfd1 {[%emt 0:01:20]} h4 {[%emt 0:02:30]} 18. gxh4 {[%emt 0:00:53]} g4 {[%emt 0:05:56]} 19. Ne5 {[%emt 0:00:42]} Nxe5 {[%emt 0:02:38]} 20. dxe5 {[%emt 0:00:12]} Qxh4 {[%emt 0:00:39]} 21. Qg6+ {[%emt 0:00:32]} Kf8 {[%emt 0:00:04]} 22. Kf1 {[%emt 0:00:37]} Rh6 {[%emt 0:00:32]} 23. Qc2 {[%emt 0:02:17]} Qh1+ {[%emt 0:00:36]} 24. Ke2 {[%emt 0:00:09]} Qxg2 {[%emt 0:00:05]} 25. Rg1 {[%emt 0:01:50]} Qf3+ {[%emt 0:00:27]} 26. Ke1 {[%emt 0:00:12]} g3 {[%emt 0:07:02]} 27. Qe2 {[%emt 0:06:23]} gxf2+ {[%emt 0:00:24]} 28. Qxf2 {[%emt 0:00:09]} Qxf2+ {[%emt 0:00:07]} 29. Kxf2 {[%emt 0:00:06]} Rh2+ {[%emt 0:00:23]} 30. Rg2 {[%emt 0:00:26]} Rxg2+ {[%emt 0:00:12]} 31. Kxg2 {[%emt 0:00:05]} Bxe5 {[%emt 0:00:08]} 32. Rh1 {[%emt 0:00:42]} b5 {[%emt 0:01:45]} 33. Rh6 {[%emt 0:00:54]} Ke7 {[%emt 0:00:31]} 34. Kf3 {[%emt 0:00:36]} Rh8 {[%emt 0:03:34]} 35. Rxh8 {[%emt 0:00:59]} Bxh8 {[%emt 0:00:07]} 36. axb5 {[%emt 0:00:07]} cxb5 {[%emt 0:00:35]} 37. Nd1 {[%emt 0:00:08]} a5 {[%emt 0:00:31]} 38. e4 {[%emt 0:00:43]} a4 {[%emt 0:00:18]} 39. exd5 {[%emt 0:00:10]} exd5 {[%emt 0:01:35]} 40. Ke3 {[%emt 0:00:43]} b4 {[%emt 0:01:38] Kd4} 0-1

[Event "Targo Mures Open 2019"]
[Site "Targo Mures"]
[Date "2019.10.20"]
[Round "6.8"]
[White "Stegariu, Alexandru"]
[Black "Vladescu, Alin-Cristian"]
[Result "1-0"]
[ECO "E90"]
[WhiteElo "2146"]
[BlackElo "2004"]
[Annotator "ChessBase"]
[PlyCount "119"]
[EventDate "2019.03.02"]
[EventType "swiss"]
[EventCountry "ROU"]
[SourceTitle "playchess.com"]
[Source "ChessBase"]
[SourceQuality "1"]
[TimeControl "5400+30"]

1. d4 {[%emt 0:00:00]} d6 {[%emt 0:00:00]} 2. c4 {[%emt 0:00:30]} Nf6 {[%emt 0:00:00]} 3. Nc3 {[%emt 0:00:00]} g6 {[%emt 0:00:43]} 4. e4 {[%emt 0:00:00]} Bg7 {[%emt 0:01:17]} 5. Nf3 {[%emt 0:00:00]} c6 {[%emt 0:06:24]} 6. Be2 {[%emt 0:01:33]} a6 {[%emt 0:13:43]} 7. O-O {[%emt 0:06:56]} O-O {[%emt 0:03:49]} 8. d5 {[%emt 0:05:35]} Nbd7 {[%emt 0:08:15]} 9. Re1 {[%emt 0:02:51]} c5 {[%emt 0:07:20]} 10. h3 {[%emt 0:02:26]} Ne8 {[%emt 0:03:57]} 11. Bf4 {[%emt 0:04:12]} Nc7 {[%emt 0:04:43]} 12. Bf1 {[%emt 0:01:49]} Rb8 {[%emt 0:04:27]} 13. a4 {[%emt 0:04:07]} b6 {[%emt 0:01:37]} 14. Qd2 {[%emt 0:08:26]} Ne5 {[%emt 0:04:30]} 15. Nxe5 {[%emt 0:01:56]} dxe5 {[%emt 0:02:35]} 16. Be3 {[%emt 0:02:41]} a5 {[%emt 0:01:09]} 17. Bg5 {[%emt 0:06:54]} f6 {[%emt 0:03:54]} 18. Bh4 {[%emt 0:01:16]} g5 {[%emt 0:01:48]} 19. Bg3 {[%emt 0:00:04]} Ne8 {[%emt 0:01:03]} 20. Be2 {[%emt 0:06:39]} Nd6 {[%emt 0:00:46]} 21. b3 {[%emt 0:00:17]} Bd7 {[%emt 0:00:40]} 22. Qd1 {[%emt 0:00:42]} Qc8 {[%emt 0:01:37]} 23. h4 {[%emt 0:02:10]} h6 {[%emt 0:07:09]} 24. Bh5 {[%emt 0:10:07]} Be8 {[%emt 0:03:34]} 25. Ra2 {[%emt 0:00:51]} Bxh5 {[%emt 0:01:04]} 26. Qxh5 {[%emt 0:00:07]} Qe8 {[%emt 0:01:22]} 27. Qg4 {[%emt 0:00:09]} Qf7 {[%emt 0:03:20]} 28. Rd2 {[%emt 0:03:23]} Rbd8 {[%emt 0:00:49]} 29. Qe6 {[%emt 0:01:25]} Rfe8 {[%emt 0:03:00]} 30. f3 {[%emt 0:00:48]} Qxe6 {[%emt 0:00:51]} 31. dxe6 {[%emt 0:00:06]} Bf8 {[%emt 0:00:42]} 32. Red1 {[%emt 0:00:13]} Rc8 {[%emt 0:00:37]} 33. Bf2 {[%emt 0:03:35]} Rc6 {[%emt 0:00:20]} 34. Kh2 {[%emt 0:01:45]} Rec8 {[%emt 0:02:27]} 35. Kg3 {[%emt 0:05:04]} Ne8 {[%emt 0:02:08]} 36. Rd8 {[%emt 0:02:42]} Nd6 {[%emt 0:02:20]} 37. Rd7 {[%emt 0:00:26]} Ne8 {[%emt 0:00:53]} 38. Rd8 {[%emt 0:01:15]} Ng7 {[%emt 0:00:58]} 39. Rxc8 {[%emt 0:00:33]} Rxc8 {[%emt 0:00:06]} 40. Rd7 {[%emt 0:00:05]} Nxe6 {[%emt 0:02:39]} 41. Rb7 {[%emt 0:00:28]} Rc6 {[%emt 0:00:43]} 42. Nd5 {[%emt 0:00:08]} Nd4 {[%emt 0:00:53]} 43. Bxd4 {[%emt 0:00:12]} cxd4 {[%emt 0:00:32]} 44. Rxe7 {[%emt 0:00:11]} Rd6 {[%emt 0:00:37]} 45. Rb7 {[%emt 0:00:23]} d3 {[%emt 0:00:21]} 46. Kf2 {[%emt 0:00:14]} Rc6 {[%emt 0:00:37]} 47. Ke3 {[%emt 0:00:11]} Bc5+ {[%emt 0:00:28]} 48. Kxd3 {[%emt 0:00:06]} Re6 {[%emt 0:00:29]} 49. h5 {[%emt 0:00:26]} Rc6 {[%emt 0:00:42]} 50. Ke2 {[%emt 0:00:41]} Re6 {[%emt 0:00:22]} 51. g3 {[%emt 0:00:05]} Bd4 {[%emt 0:00:24]} 52. Kf1 {[%emt 0:00:11]} g4 {[%emt 0:00:37]} 53. Ke2 {[%emt 0:00:36]} Bc5 {[%emt 0:00:23]} 54. fxg4 {[%emt 0:00:15]} Bd4 {[%emt 0:00:37]} 55. Kf3 {[%emt 0:00:15]} Bc5 {[%emt 0:00:11]} 56. g5 {[%emt 0:00:10]} fxg5 {[%emt 0:00:22]} 57. Kg4 {[%emt 0:00:04]} Bf2 {[%emt 0:00:29]} 58. Kf5 {[%emt 0:00:08]} Rd6 {[%emt 0:00:16]} 59. g4 {[%emt 0:00:06]} Bd4 {[%emt 0:00:12]} 60. Nf6+ 1-0

[Event "Targo Mures Open 2019"]
[Site "Targo Mures"]
[Date "2019.10.20"]
[Round "6.9"]
[White "Ferenczi, Sandor-Levente"]
[Black "Rusan, Paul-Cristian"]
[Result "0-1"]
[ECO "E83"]
[WhiteElo "1902"]
[BlackElo "2105"]
[Annotator "ChessBase"]
[PlyCount "79"]
[EventDate "2019.03.02"]
[EventType "swiss"]
[EventCountry "ROU"]
[SourceTitle "playchess.com"]
[Source "ChessBase"]
[SourceQuality "1"]
[TimeControl "5400+30"]

1. e4 {[%emt 0:00:00]} g6 {[%emt 0:00:00]} 2. d4 {[%emt 0:00:55]} Bg7 {[%emt 0:00:00]} 3. c4 {[%emt 0:00:55]} d6 {[%emt 0:00:08]} 4. Nc3 {[%emt 0:00:15]} Nf6 {[%emt 0:00:16]} 5. f3 {[%emt 0:00:35]} O-O {[%emt 0:00:59]} 6. Be3 {[%emt 0:00:15]} Nc6 {[%emt 0:01:18]} 7. Qd2 {[%emt 0:02:22]} a6 {[%emt 0:00:26]} 8. O-O-O {[%emt 0:04:15]} Re8 {[%emt 0:03:57]} 9. g4 {[%emt 0:00:51]} e5 {[%emt 0:02:19]} 10. Nge2 {[%emt 0:01:21]} b5 {[%emt 0:03:18]} 11. d5 {[%emt 0:01:23]} Na5 {[%emt 0:00:39]} 12. Ng3 {[%emt 0:00:39]} Nxc4 {[%emt 0:05:00]} 13. Bxc4 {[%emt 0:00:08]} bxc4 {[%emt 0:00:04]} 14. h4 {[%emt 0:00:37]} Nd7 {[%emt 0:09:08]} 15. h5 {[%emt 0:06:49]} Nc5 {[%emt 0:00:48]} 16. Bxc5 {[%emt 0:01:27]} dxc5 {[%emt 0:00:06]} 17. hxg6 {[%emt 0:02:40]} hxg6 {[%emt 0:00:09]} 18. g5 {[%emt 0:02:48]} Rb8 {[%emt 0:01:09]} 19. Rh2 {[%emt 0:00:51]} Rb6 {[%emt 0:02:41]} 20. Kb1 {[%emt 0:02:50]} Bd7 {[%emt 0:00:25]} 21. Rdh1 {[%emt 0:01:02]} Qe7 {[%emt 0:02:17]} 22. d6 {[%emt 0:04:22]} Rxd6 {[%emt 0:02:31]} 23. Nd5 {[%emt 0:00:13]} Rxd5 {[%emt 0:04:34]} 24. Qxd5 {[%emt 0:04:24]} Be6 {[%emt 0:01:46]} 25. Qd2 {[%emt 0:03:11]} Rd8 {[%emt 0:03:23]} 26. Qc1 {[%emt 0:00:03]} Rd3 {[%emt 0:02:45]} 27. Rf2 {[%emt 0:07:40]} Qd8 {[%emt 0:03:27]} 28. Rff1 {[%emt 0:02:46]} c3 {[%emt 0:05:29]} 29. Rd1 {[%emt 0:04:15]} cxb2 {[%emt 0:01:36]} 30. Qc2 {[%emt 0:02:29]} c4 {[%emt 0:06:42]} 31. Ne2 {[%emt 0:04:42]} c6 {[%emt 0:05:29]} 32. Kxb2 {[%emt 0:02:04]} Bf8 {[%emt 0:10:11]} 33. Ka1 {[%emt 0:06:13]} Qa5 {[%emt 0:06:56]} 34. Rh2 {[%emt 0:09:08]} Bb4 {[%emt 0:06:56]} 35. Rf2 {[%emt 0:15:19]} Bd2 {[%emt 0:03:51]} 36. Rb1 {[%emt 0:01:42]} Bxg5 {[%emt 0:01:06]} 37. Nc1 {[%emt 0:01:56]} Ra3 {[%emt 0:02:09]} 38. Rh2 {[%emt 0:04:28]} Kg7 {[%emt 0:01:39]} 39. Rb8 {[%emt 0:00:40]} Rc3 {[%emt 0:00:22]} 40. Rh7+ {[%emt 0:00:52] Ra3 Rh1} 0-1

[Event "Targo Mures Open 2019"]
[Site "Targo Mures"]
[Date "2019.10.20"]
[Round "6.10"]
[White "Filip, Andrei"]
[Black "Chiheri, Alexandru-Virgil"]
[Result "1-0"]
[ECO "B85"]
[WhiteElo "2047"]
[BlackElo "1871"]
[Annotator "NA"]
[PlyCount "103"]
[EventDate "2019.03.02"]
[EventType "swiss"]
[EventCountry "ROU"]
[SourceTitle "playchess.com"]
[Source "ChessBase"]
[SourceQuality "1"]
[TimeControl "5400+30"]

1. e4 {[%emt 0:01:13]} c5 {[%emt 0:02:42]} 2. Nf3 {[%emt 0:00:06]} d6 {[%emt 0:00:07]} 3. d4 {[%emt 0:00:04]} cxd4 {[%emt 0:00:04]} 4. Nxd4 {[%emt 0:00:06]} Nf6 {[%emt 0:00:04]} 5. Nc3 {[%emt 0:00:05]} a6 {[%emt 0:00:05]} 6. Be2 {[%emt 0:00:32]} e6 {[%emt 0:00:49]} 7. O-O {[%emt 0:01:08]} Nbd7 {[%emt 0:00:24]} 8. f4 {[%emt 0:01:04]} Qc7 {[%emt 0:00:11]} 9. Qe1 {[%emt 0:01:13] B84: Sicilian Scheveningen: 6 Be2 a6, lines without early Be3} (9. a4 b6 10. Bf3 Bb7 11. Kh1 Be7 12. f5 e5 13. Nb3 Rc8 14. Bg5 Qb8 15. Qe2 O-O 16. Rad1 Rfe8 17. Nc1 h6 18. Bh4 d5 19. exd5 {0-1 (45) Azarov,S (2577)-Hou,Y (2649) Bastia 2016}) 9... b5 {[%emt 0:00:08]} 10. Bf3 {[%emt 0:02:28]} Bb7 {[%emt 0:00:07]} 11. Kh1 {[%emt 0:09:24]} b4 {[%emt 0:01:03]} 12. e5 $146 {[%emt 0:06:59]} (12. Na4 $11 {remains equal.}) ({Predecessor:} 12. Nd1 Be7 13. a3 Qc4 14. e5 Bxf3 15. Nxf3 Nd5 16. exd6 Bxd6 17. f5 O-O 18. fxe6 {1-0 (34) Ponizil,C (2304)-Jasny,S (2347) Czechia 2010}) 12... bxc3 {[%emt 0:01:08]} 13. exf6 {[%emt 0:02:17]} Nxf6 {[%emt 0:04:39]} 14. Bxb7 {[%emt 0:04:34]} Qxb7 {[%emt 0:01:15]} 15. Qxc3 {[%emt 0:01:50]} Be7 {[%emt 0:01:04]} 16. Qc6+ {[%emt 0:07:19]} Qxc6 {[%emt 0:00:18]} 17. Nxc6 {[%emt 0:00:09]} Bf8 {[%emt 0:00:37]} 18. Be3 {[%emt 0:06:43]} Kd7 {[%emt 0:04:57]} 19. Nd4 {[%emt 0:02:02]} Be7 {[%emt 0:00:45]} 20. c4 {[%emt 0:05:21]} Rhc8 {[%emt 0:00:35]} 21. Rfc1 {[%emt 0:02:04]} d5 {[%emt 0:00:13]} 22. Nf3 {[%emt 0:04:59]} Bc5 {[%emt 0:08:16]} 23. Bxc5 {[%emt 0:01:52]} Rxc5 {[%emt 0:00:09]} 24. b4 {[%emt 0:01:39]} Rc7 {[%emt 0:00:24]} 25. c5 {[%emt 0:00:33]} Ne4 {[%emt 0:00:24]} 26. Ne5+ {[%emt 0:01:42]} Ke7 {[%emt 0:00:06]} 27. Nd3 {[%emt 0:03:25]} Nd2 {[%emt 0:01:06]} 28. Rc2 {[%emt 0:06:53]} Nc4 {[%emt 0:00:07]} 29. a4 {[%emt 0:03:34]} f6 {[%emt 0:00:50]} 30. Re1 $14 {[%emt 0:01:24]} Rb8 {[%emt 0:01:30]} 31. Rce2 {[%emt 0:07:19]} Rc6 {[%emt 0:00:44]} 32. b5 {[%emt 0:01:48]} axb5 {[%emt 0:00:29]} 33. Nb4 {[%emt 0:00:04]} Rxc5 {[%emt 0:00:28]} 34. Na6 {[%emt 0:00:09]} Rbc8 {[%emt 0:00:56]} 35. Rxe6+ {[%emt 0:01:00]} Kf7 {[%emt 0:00:21]} 36. Nxc5 {[%emt 0:00:32]} Rxc5 {[%emt 0:00:08]} 37. f5 {[%emt 0:01:37]} Ne5 {[%emt 0:00:05]} 38. a5 {[%emt 0:01:27]} d4 {[%emt 0:02:38]} 39. a6 {[%emt 0:02:29]} d3 {[%emt 0:00:16]} 40. a7 {[%emt 0:01:30]} d2 {[%emt 0:00:29]} 41. Rg1 {[%emt 0:00:31]} Rc1 {[%emt 0:00:17]} 42. Rd6 {[%emt 0:00:38]} Rc8 {[%emt 0:06:20]} 43. Rb6 {[%emt 0:02:06]} Nd7 {[%emt 0:00:56]} 44. Rxb5 {[%emt 0:00:40]} Ra8 {[%emt 0:00:10]} 45. Rb7 {[%emt 0:00:46]} Ke7 {[%emt 0:00:06]} 46. Rd1 {[%emt 0:01:19]} Rc8 {[%emt 0:00:27]} 47. h3 {[%emt 0:00:40]} Rc1 {[%emt 0:00:09]} 48. Rb1 {[%emt 0:00:04]} Rxb1 {[%emt 0:01:43]} 49. Rxb1 {[%emt 0:00:05]} Nb6 50. Rd1 Kd6 {[%emt 0:00:43]} 51. Rxd2+ {[%emt 0:00:35]} Kc7 {[%emt 0:00:03]} 52. Rb2 {[%emt 0:00:07]} 1-0